Cogmind - Beta 13 @@@ ROGUE MODE // 2024.07.29 @ 17:33:33 Player: Dzuchun Result: Destroyed by Y-45 Defender with Heavy Assault Rifle Performance ------------- Evolutions (1) 500 Regions Visited (3) 600 Robots Destroyed (21) 105 Value Destroyed (656) 656 Prototype IDs (0) 0 Alien Tech Used (0) 0 Bonus (0) 0 TOTAL SCORE: 1861 Bonus ------- None Cogmind --------- Core Integrity 0/400 Matter 282/300 Energy 100/100 System Corruption 0% Temperature Cool (9) Movement Treading (160) Location -9/Storage Parts ------- > --- POWER (1) -------- (None) > --- PROPULSION (3) --- Light Treads Light Treads > --- UTILITY (2) ------ Signal Interpreter Terrain Scan Processor > --- WEAPON (3) ------- Autogun Autogun > --- INVENTORY (5) ---- Light Ion Engine Weight Redist. System Visual Processing Unit Transport Network Coupler ECM Suite Peak State ------------ > --- POWER ------------ Ion Engine > --- PROPULSION ------- Light Treads Light Treads Light Treads > --- UTILITY ---------- Signal Interpreter Terrain Scan Processor > --- WEAPON ----------- Beam Rifle Particle Gun Autogun > --- INVENTORY -------- Visual Processing Unit Transport Network Coupler ECM Suite Light Armor Plating [Rating: 13] Favorites ----------- Power Light Ion Engine Engine Light Ion Engine Propulsion Light Treads Treads Light Treads Wheel Compact Wheel Hover Unit Improved Hover Unit Flight Unit Flight Unit Utility Signal Interpreter Device ECM Suite Storage Small Storage Unit Processor Signal Interpreter Weapon Autogun Energy Gun Particle Gun Ballistic Gun Autogun Launcher Grenade Launcher Build | -11 -10 -9 -9 ------- Run | Yrd Mat Mat Sto Slots Evolved 2 | . . 2 . Power . | . . . . Propulsion 1 | . . 1 . Utility . | . . . . Weapon 1 | . . 1 . Parts Attached 31 | 4 3 17 7 Power 4 | 1 . 2 1 Engine 4 | 1 . 2 1 Core . | . . . . Reactor . | . . . . Propulsion 13 | 1 1 8 3 Treads 5 | . . 2 3 Leg . | . . . . Wheel 3 | 1 1 1 . Hover 3 | . . 3 . Flight 2 | . . 2 . Utility 5 | 1 1 3 . Device 1 | . 1 . . Storage 2 | 1 . 1 . Processor 2 | . . 2 . Hackware . | . . . . Protection . | . . . . Artifact . | . . . . Weapon 9 | 1 1 4 3 Energy Gun 2 | . . 2 . Energy Cannon . | . . . . Ballistic Gun 5 | 1 . 2 2 Ballistic Cannon . | . . . . Launcher 2 | . 1 . 1 Special Weapon . | . . . . Impact Weapon . | . . . . Slashing Weapon . | . . . . Piercing Weapon . | . . . . Special Melee Weapon . | . . . . Unidentified Prototypes . | . . . . Parts Lost 15 | . . 10 5 Power 3 | . . 2 1 Propulsion 8 | . . 6 2 Utility . | . . . . Weapon 4 | . . 2 2 Highest Loss Streak 5 | . . 5 2 To Critical Strikes . | . . . . Average Slot Usage (%) 82 | . 84 70 88 Engine 10 | . 14 8 10 Treads 17 | . . 4 28 Wheel 5 | . 18 10 . Hover 1 | . . 5 . Device 3 | . 9 6 . Storage 3 | . 14 4 . Processor 16 | . . 11 22 Energy Gun 8 | . . 4 11 Ballistic Gun 12 | . 14 11 12 Launcher 4 | . 13 2 2 Naked Turns . | . . . . Heaviest Build 14 | 9 14 14 14 Greatest Support 60 | 16 32 42 60 Greatest Overweight (x) 1 | . . 1 . Average Overweight (x) . | . . . . Largest Inventory Capacity 15 | 8 8 15 5 Average Capacity 5 | 7 8 6 5 Most Carried 8 | . 2 8 5 Average Carried 3 | . . 4 4 Final Capacity 8 | 8 8 5 5 Final Carried 5 | . 2 4 5 Class Distribution -------------------- 35% | Scavenger-Gunner 32% | Scavenger-Mutant 31% | Mutant Dominant Class ---------------- Mutant | -10/Materials Mutant | -9/Materials Scavenger-Gunner | -9/Storage Resources | -11 -10 -9 -9 ----------- Run | Yrd Mat Mat Sto Matter Collected 559 | . 10 220 329 Remotely . | . . . . Salvage Created 606 | . 10 207 389 Parts 45 | . 1 17 27 Haulers Intercepted . | . . . . Recyclers Shooed 1 | . . . 1 Parts Field Recycled . | . . . . Retrieved Matter . | . . . . Parts Self-Destructed . | . . . . Prevented . | . . . . Kills | -11 -10 -9 -9 ------- Run | Yrd Mat Mat Sto Combat Hostiles Destroyed 16 | . 1 6 9 Melee 1 | . . 1 . Guns 10 | . . 3 7 AOE 5 | . 1 2 2 Classes Destroyed 6 | . 1 4 1 Worker 1 | . . . 1 Builder 3 | . . 2 1 Watcher 1 | . . 1 . Swarmer 3 | . . 3 . Grunt 7 | . 1 2 4 Sentry 6 | . . 1 5 Best Kill Streak 5 | . 1 5 3 Combat Bots Only 2 | . 1 2 2 Max Kills in Single Turn 3 | . 1 2 3 Gunslinging . | . . . . Exploded 2 | . 1 1 2 Melee 1 | . . 1 . Uniques/NPCs Destroyed . | . . . . Combat | -11 -10 -9 -9 -------- Run | Yrd Mat Mat Sto Hostile Shots Fired 178 | . 3 99 76 Missed 49 | . 1 25 23 Damage Taken 1690 | . 23 766 901 Core 416 | . 12 154 250 Absorbed by Shields . | . . . . Core Remaining (%) 97 | 100 95 . . Volleys Fired 51 | . 3 19 29 Largest 3 | . 2 3 3 Hottest 144 | . 50 144 144 Shots Fired 107 | . 6 25 76 Gun 94 | . 3 21 70 Cannon . | . . . . Launcher 13 | . 3 4 6 Special . | . . . . Kinetic 53 | . 3 19 31 Thermal 41 | . . 2 39 Explosive 7 | . 3 4 . Electromagnetic 6 | . . . 6 Robot Hit Streak 18 | . 2 14 18 Robot Miss Streak 3 | . 2 1 3 Penetration Max . | . . . . Secondary Targets . | . . . . Shots Hit Robots 71 | . 4 18 49 Core Hits 40 | . 1 18 21 Critical Kills . | . . . . Critical Parts Destroyed . | . . . . Critical Strikes 4 | . . . 4 Burn 3 | . . . 3 Destroy 1 | . . . 1 Melee Attacks . | . . . . Impact . | . . . . Slashing . | . . . . Piercing . | . . . . Sneak Attacks . | . . . . Combat Hostiles . | . . . . Follow-up Attacks . | . . . . Damage Inflicted 1742 | . 128 460 1154 Guns 858 | . 12 157 689 Cannons . | . . . . Explosions 780 | . 116 232 432 Melee . | . . . . Ramming 104 | . . 71 33 Kinetic 394 | . 12 139 243 Thermal 464 | . . 18 446 Explosive 662 | . 116 232 314 Electromagnetic 118 | . . . 118 Impact . | . . . . Slashing . | . . . . Piercing . | . . . . Highest Corruption . | . . . . Average Corruption . | . . . . Corruption Purged . | . . . . Corruption Blocked . | . . . . Overload Shots . | . . . . Overflow Damage 23 | . . 2 21 Projectiles . | . . . . Explosions 23 | . . 2 21 Melee . | . . . . Knockbacks . | . . . . Impact . | . . . . Kinetic . | . . . . Secondary . | . . . . Self-Inflicted Damage 93 | . . 26 67 Shots 1 | . . . 1 Rammed 55 | . . 38 17 Targets Rammed 56 | . . 38 18 Kicked . | . . . . Crushed 1 | . . . 1 Highest Temperature 621 | . 16 60 621 Average Temperature 170 | . 9 17 192 Received Heat Transfer 498 | . 12 180 306 Effects 13 | . . . 13 Shutdowns 3 | . . . 3 Energy Bleed 3 | . . . 3 Interference 1 | . . . 1 Matter Decay 2 | . . . 2 Damage (minor) 2 | . . . 2 Damage (major) 1 | . . . 1 Damage (core) 1 | . . . 1 Siege Activations . | . . . . Robots Corrupted . | . . . . Combat Hostiles . | . . . . Parts Fried . | . . . . Impact Corruptions . | . . . . Robots Melted . | . . . . Combat Hostiles . | . . . . Parts Melted 3 | . . . 3 Heat Transferred 1332 | . . 37 1295 Parts Sabotaged . | . . . . Parts Stolen . | . . . . Parts Stripped . | . . . . Power Chain Reactions . | . . . . Alert | -11 -10 -9 -9 ------- Run | Yrd Mat Mat Sto Peak Influence 395 | . 75 260 395 Initial 109 | . . 31 109 Average 177 | . 49 141 232 Maximum Alert Level 1 | . . 1 1 Low Security (%) 57 | 100 100 72 37 Level 1 42 | . . 27 62 Level 2 . | . . . . Level 3 . | . . . . Level 4 . | . . . . Level 5 . | . . . . High Security . | . . . . Max Security . | . . . . Squads Dispatched 2 | . 1 . 1 Investigation . | . . . . Extermination . | . . . . Reinforcement 1 | . 1 . . Assault . | . . . . Garrison 1 | . . . 1 Intercept . | . . . . Searches Triggered . | . . . . Construction Impeded . | . . . . Haulers Reinforced . | . . . . Active Scanning Responses . | . . . . Cargo Convoy Interrupts . | . . . . Stealth | -11 -10 -9 -9 --------- Run | Yrd Mat Mat Sto Distress Signals 1 | . . . 1 Communications Jammed . | . . . . Distress Signals . | . . . . Times Spotted 33 | . 2 19 12 Peak Tracking Total 6 | . 1 6 3 Tactical Retreats 7 | . . 4 3 Traps | -11 -10 -9 -9 ------- Run | Yrd Mat Mat Sto Traps Triggered . | . . . . Indirectly . | . . . . Trap Hack Attempts . | . . . . Triggered . | . . . . Disarmed . | . . . . Reprogrammed . | . . . . Reused . | . . . . Traps Extracted . | . . . . Installed . | . . . . Triggered . | . . . . Machines | -11 -10 -9 -9 ---------- Run | Yrd Mat Mat Sto Machines Disabled 6 | . 1 . 5 Max in Single Turn 2 | . 1 . 2 Machines Repaired . | . . . . Machines Dismantled . | . . . . Machines Sabotaged . | . . . . Overloaded Fab Kills . | . . . . Hacking | -11 -10 -9 -9 --------- Run | Yrd Mat Mat Sto Machines Accessed 4 | . . 2 2 Terminals 4 | . . 2 2 Fabricators . | . . . . Repair Stations . | . . . . Recycling Units . | . . . . Scanalyzers . | . . . . Garrison Access . | . . . . Total Hacks 15 | . . 5 10 Successful 9 | . . 5 4 Failed 6 | . . . 6 Catastrophic . | . . . . Database Lockouts . | . . . . Manual 8 | . . . 8 Terminals 15 | . . 5 10 Fabricators . | . . . . Repair Stations . | . . . . Recycling Units . | . . . . Scanalyzers . | . . . . Garrison Access . | . . . . Terminal Hacks 9 | . . 5 4 Record 3 | . . 2 1 Dispatch Records 2 | . . . 2 Surveillance Status 1 | . . 1 . Reinforcement Status 1 | . . 1 . Coupling Status 1 | . . . 1 Hauler Manifests 1 | . . 1 . Fabricator Hacks . | . . . . Repair Station Hacks . | . . . . Recycling Unit Hacks . | . . . . Scanalyzer . | . . . . Garrison Access Hacks . | . . . . Unauthorized Hacks . | . . . . Terminals . | . . . . Fabricators . | . . . . Repair Stations . | . . . . Recycling Units . | . . . . Scanalyzers . | . . . . Garrison Access . | . . . . Data Cores Recovered . | . . . . Used . | . . . . Hacking Detections 4 | . . 1 3 Full Trace Events 3 | . . 1 2 Feedback Events . | . . . . Feedback Blocked . | . . . . Robot Schematics Acquired . | . . . . Robots Built . | . . . . Authchips . | . . . . Time . | . . . . Total Robot Build Rating . | . . . . Part Schematics Acquired . | . . . . Parts Built . | . . . . Authchips . | . . . . Time . | . . . . Total Part Build Rating . | . . . . Parts Repaired . | . . . . Time . | . . . . Parts Recycled . | . . . . Recycled Matter . | . . . . Retrieved Matter . | . . . . Retrieved Components . | . . . . Parts Scanalyzed . | . . . . Part Schematics Acquired . | . . . . Parts Damaged . | . . . . Bothacking | -11 -10 -9 -9 ------------ Run | Yrd Mat Mat Sto Used RIF Installer . | . . . . Robots Hacked . | . . . . Non-combat . | . . . . Combat . | . . . . Robot Hacks Applied . | . . . . Relay Couplers Released . | . . . . Fabnet Peak Effective % . | . . . . Robots Rewired . | . . . . Allies Hacked . | . . . . Hacks Repelled . | . . . . Allies | -11 -10 -9 -9 -------- Run | Yrd Mat Mat Sto Total Allies . | . . . . Largest Group . | . . . . Highest-Rated Group . | . . . . Highest-Rated Ally . | . . . . Total Orders . | . . . . Ally Attacks . | . . . . Total Damage . | . . . . Kills . | . . . . Allies Corrupted . | . . . . Allies Melted . | . . . . Intel | -11 -10 -9 -9 ------- Run | Yrd Mat Mat Sto Robot Analysis Total . | . . . . Derelict Logs Recovered . | . . . . Drone Launches . | . . . . Drone Recoveries . | . . . . Exploration | -11 -10 -9 -9 ------------- Run | Yrd Mat Mat Sto Turns Passed 1283 | 34 155 380 714 Spaces Moved 782 | 30 139 263 350 Core 5 | 3 . 2 . Treads 392 | . . 42 350 Legs . | . . . . Wheels 296 | 27 139 130 . Hover 63 | . . 63 . Flight 26 | . . 26 . Fastest Speed 37 | 50 100 37 160 Average Speed 123 | 95 100 91 160 Slowest Speed 160 | 100 100 160 160 Overloaded Moves . | . . . . Propulsion Burnouts . | . . . . Robots Hopped . | . . . . Cave-ins Triggered . | . . . . Exploration Rate (%) 22 | 4 29 15 40 Regions Visited 3 Branch Regions 1 Pre-discovered Areas . | . . . . Known Exits Taken 1 | . . 1 . Unknown Exits Taken 2 | 1 1 . . Scrap Searched . | . . . . Spaces Dug 27 | . . . 27 Terrain Destroyed 86 | . 20 39 27 Melee . | . . . . Projectile . | . . . . AOE 86 | . 20 39 27 Terrain Rammed . | . . . . Walls Destroyed . | . . . . Machines Disabled . | . . . . Actions | -11 -10 -9 -9 --------- Run | Yrd Mat Mat Sto Total 993 | 33 148 377 435 Wait 42 | . 2 20 20 Move 779 | 29 138 262 350 Hop . | . . . . Pick Up 17 | . 2 11 4 Fast Attach 27 | 4 3 13 7 Attach 1 | . . 1 . Detach 2 | . . 2 . Swap 3 | . . 3 . Drop 15 | . . 8 7 Fire 51 | . 3 19 29 Melee . | . . . . Ram 37 | . . 37 . Kick . | . . . . Crush 19 | . . 1 18 Escape Stasis . | . . . . Rewire . | . . . . Trap . | . . . . Miscellaneous . | . . . . Route ------- -11/Scrapyard -10/Materials -9/Materials -9/Storage History --------- Turn | Location | Event 18 | -11/Scrapyard | Discovered new exit (range 15) 35 | -11/Scrapyard | Entered Materials 184 | -10/Materials | Discovered new exit (range 7) 190 | -10/Materials | Entered another Materials area 190 | -9/Materials | Evolved 2 slots: Propulsion x1, Weapon x1 320 | -9/Materials | Build established: Mutant 413 | -9/Materials | Lost 3 parts (1p2n) 514 | -9/Materials | Lost 5 parts (1p3n1w) 555 | -9/Materials | Discovered new exit (range 9) 568 | -9/Materials | Identified exit to Storage 570 | -9/Materials | Entered Storage 727 | -9/Storage | Core integrity fell below 50% 1205 | -9/Storage | Garrison activated, responded to threat 1206 | -9/Storage | Core integrity fell below 20% 1284 | -9/Storage | Destroyed by Y-45 Defender with Heavy Assault Rifle Last Messages --------------- 01223_ K-01 Serf collects debris. 01227_ U-05 Engineer lays Concrete. 01229_ K-01 Serf collects debris. 01230_ U-05 Engineer lays Concrete. 01233_ K-01 Serf collects debris. 01234_ U-05 Engineer lays Concrete. 01236_ K-01 Serf cleans the Terminal. 01236_ U-05 Engineer lays Concrete. 01236_ K-01 Serf collects debris. 01240_ K-01 Serf cleans the Terminal. 01250_ K-01 Serf collects debris. 01252_ U-05 Engineer lays Concrete. 01258_ Terminal disabled. 01260_ Lgt. Ion Engine destroyed. 01263_ Critical hit (Burn: +37). 01266_ U-05 Engineer lays Concrete. 01266_ Y-45 Defender misfires. 01268_ Slammed into Y-45 Defender. 01280_ EMP Blaster destroyed. 01281_ Slammed into Y-45 Defender. Map ----- +----------------------------------------------------+ | # """ # ??????????? | | # # ^ ??????????? | | # # ##############???????????? | | # # #????????###########?????? | | ####### #????????# #?????? | | # # #????????# """" #?????? | | # # #????????# "??" #?????? | | # + ^#??####### "??" #?????? | | # = # #?## ## "??" #?????? | | # # ### "??" #?????? | | # # # """" #?????? | | # | + # [%= [ #?????? | | # ## ## *% +###+########### | | # ## ## | | # ! ## ## = | | # ## ## | | # ## ## #+#"#########+# | | ######## ## #?# | | ???#### # #?# | | ???# ###+## #?# | | ???# ## #?# ## ## #?# | | ???# ### ####r###### #?# | | ???# #?# ## #???# #?# [ | | ???# #?# ## #???# ! #?# [* | | ???# #?# ## #???# !! #?# =% | | ???# #?# ##@ Y #???# !#?# =! | | ???# #?# ### ##???####" "# #?###### | | ???# #?# #?# #???????#"G"###??????? | | ???# #?# #?# #???????# " #????????? | | ???# #?# #?# #???????#####????????? | | ???#^#?# #?# ##########???????????? | | ?###+###+### # #???????????? | | ?# % # # """ #???????????? | | ?# """!" " # # "?"""" #???????????? | | ?# """ """ # # "????" #???????????? | | ?# """ """ # # "????" #???????????? | | ?# # %# """"?" #???????????? | | ?# #% # """ #???????????? | | ?# |+ +% #???????????? | | ?# # # #???????????? | | ?######### # ##########???????????? | | ?????????### T#???????????????????? | | ???????????# ##???????????????????? | | ???????????""""????????????????????? | | ???????????????????????????????????? | | ???????????????????????????????????? | | ???????????????????????????????????? | | ???????????????????????????????????? | | ???????????????????????????????????? | | ???????????????????????????????????? | +----------------------------------------------------+ Best States ------------- Heat Dissipation 28 Energy Generation 10 Energy Capacity 250 Matter Stores 300 Matter Capacity 300 Sight Range 16 Terrain Scan Density 85 ECM Strength 1 Evasion (%) 62 Recoil Reduction 3 Item Schematics ----------------- None Robot Schematics ------------------ None Fabricated ------------ Nothing Alien Tech Used ----------------- None Achievements -------------- Fist Fight Oops Shopping List Troublemaker Challenges ------------ None Game ------ Seed AlloyFlakPenetrator Manual? 0 Play Time 00:39:04 Cumulative 4.6 hours Start 2024.07.29 @ 15:46:21 End 2024.07.29 @ 17:33:33 Sessions 1 Manual Loads 0 Difficulty Rogue Special Mode None Game No. 6 Rogue 6 Adventurer 0 Explorer 0 Win Type - Total 0 Types 0/0/0/0/0/0/0/0/0 Lore% 7 Gallery% 7 Achievement% 9 Wizard Run 0 Options --------- Layout 0 ASCII 0 Keyboard 1 Movement Vi Keybinds 0 Fullscreen 1 Font 18/X11Bold Map View 76x50 Zoom Use 0% Tactical HUD 1 Map Filters NONE Filters NONE Steam 1 RUN: 34e403cf-1143-4d59-bc42-51d22c912c33